fUST/lending_fUST_20240803
["ID","MTS","AMOUNT","RATE_DAILY","PERIOD"]
[333965736,1722651040634,-504.92247799,0.00013698,2]
[333965738,1722651040644,-500.0,0.00013698,2]
[333965740,1722651040654,-500.0,0.00013698,2]
[333965742,1722651040663,-500.0,0.00013698,2]
[333965744,1722651040673,-500.0,0.00013698,2]
[333965745,1722651040683,-534.32595763,0.00013698,2]
[333965746,1722651040692,-356.81544732,0.00013698,2]
[333965747,1722651040702,-500.0,0.00013698,2]
[333965748,1722651040711,-818.3,0.00013698,2]
[333965749,1722651040721,-504.23108964,0.00013698,2]
[333965750,1722651040731,-580.68750223,0.00013698,2]
[333965751,1722651040741,-500.0,0.00013698,2]
[333965752,1722651040751,-500.0,0.00013698,2]
[333965753,1722651040765,-5075.94,0.00013698,2]
[333965754,1722651040775,-500.0,0.00013698,2]
[333965755,1722651040784,-261.83585373,0.00013698,2]
[333965756,1722651040794,-501.18022568,0.00013698,2]
[333965757,1722651040804,-500.0,0.00013698,2]
[333965758,1722651040815,-500.0,0.00013698,2]
[333965760,1722651040826,-502.57469937,0.00013698,2]
[333965762,1722651040836,-1406.96,0.00013698,2]
[333965764,1722651040846,-2328.21,0.00013698,2]
[333965766,1722651040855,-508.92476227,0.00013698,2]
[333965768,1722651040865,-500.0,0.00013698,2]
[333965770,1722651040874,-1123.57,0.00013698,2]
[333965772,1722651040883,-2538.06,0.00013698,2]
[333965774,1722651040893,-500.0,0.00013698,2]
[333965776,1722651040903,-500.0,0.00013698,2]
[333965778,1722651040912,-500.0,0.00013698,2]
[333965780,1722651040922,-500.0,0.00013698,2]
[333965782,1722651040932,-794.11,0.00013698,2]
[333965784,1722651040941,-509.07,0.00013698,2]
[333965786,1722651040950,-500.0,0.00013698,2]
[333965788,1722651040959,-500.0,0.00013698,2]
[333965790,1722651040969,-503.77144398,0.00013698,2]
[333965792,1722651040979,-390.86600594,0.00013698,2]
[333965794,1722651040989,-517.45085263,0.00013698,2]
[333965797,1722651041002,-500.0,0.00013698,2]
[333965799,1722651041013,-500.0,0.00013698,2]
[333965801,1722651041023,-507.20990961,0.00013698,2]
[333965803,1722651041033,-500.80186033,0.00013698,2]
[333965805,1722651041043,-505.67568784,0.00013698,2]
[333965807,1722651041052,-503.63085789,0.00013698,2]
[333965809,1722651041063,-380.17617847,0.00013698,2]
[333965812,1722651041073,-503.27310266,0.00013698,2]
[333965814,1722651041083,-506.92685903,0.00013698,2]
[333965816,1722651041092,-500.0,0.00013698,2]
[333965817,1722651041101,-500.0,0.00013698,2]
[333965819,1722651041110,-503.88063968,0.00013698,2]
[333965822,1722651041121,-500.0,0.00013698,2]
[333965824,1722651041130,-500.0,0.00013698,2]
[333965826,1722651041139,-500.0,0.00013698,2]
[333965828,1722651041149,-500.0,0.00013698,2]
[333965830,1722651041158,-500.0,0.00013698,2]
[333965832,1722651041167,-543.23371565,0.00013698,2]
[333965834,1722651041178,-502.42230152,0.00013698,2]
[333965836,1722651041188,-500.0,0.00013698,2]
[333965838,1722651041198,-510.63,0.00013698,2]
[333965840,1722651041208,-500.0,0.00013698,2]
[333965842,1722651041218,-500.0,0.00013698,2]
[333965844,1722651041228,-503.55998072,0.00013698,2]
[333965846,1722651041237,-1255.87,0.00013698,2]
[333965848,1722651041247,-503.61,0.00013698,2]
[333965850,1722651041258,-500.0,0.00013698,2]
[333965852,1722651041268,-515.17605677,0.00013698,2]
[333965854,1722651041278,-505.34586357,0.00013698,2]
[333965856,1722651041288,-501.02669427,0.00013698,2]
[333965858,1722651041298,-505.94709248,0.00013698,2]
[333965860,1722651041309,-506.56107684,0.00013698,2]
[333965862,1722651041319,-287.84623116,0.00013698,2]
[333965864,1722651041328,-500.0,0.00013698,2]
[333965866,1722651041338,-500.0,0.00013698,2]
[333965868,1722651041348,-500.0,0.00013698,2]
[333965870,1722651041358,-500.0,0.00013698,2]
[333965872,1722651041367,-824.53,0.00013698,2]
[333965874,1722651041376,-514.17,0.00013698,2]
[333965876,1722651041386,-624.42,0.00013698,2]
[333965878,1722651041397,-500.0,0.00013698,2]
[333965880,1722651041407,-500.0,0.00013698,2]
[333965882,1722651041418,-501.04584901,0.00013698,2]
[333965885,1722651041429,-500.0,0.00013698,2]
[333965887,1722651041439,-569.4,0.00013698,2]
[333965889,1722651041449,-500.0,0.00013698,2]
[333965891,1722651041460,-501.03865531,0.00013698,2]
[333965893,1722651041471,-502.50417265,0.00013698,2]
[333965895,1722651041482,-502.76573779,0.00013698,2]
[333965897,1722651041492,-319.85557054,0.00013698,2]
[333965899,1722651041502,-504.7353203,0.00013698,2]
[333965901,1722651041511,-500.0,0.00013698,2]
[333965903,1722651041520,-500.0,0.00013698,2]
[333965905,1722651041530,-3765.83,0.00013698,2]
[333965907,1722651041539,-500.0,0.00013698,2]
[333965910,1722651041548,-500.0,0.00013698,2]
[333965911,1722651041557,-875.5,0.00013698,2]
[333965914,1722651041567,-875.5,0.00013698,2]
[333965916,1722651041577,-875.5,0.00013698,2]
[333965918,1722651041591,-504.29784742,0.00013698,2]
[333965920,1722651041601,-875.5,0.00013698,2]
[333965922,1722651041610,-500.0,0.00013698,2]
[333965924,1722651041620,-500.0,0.00013698,2]
[333965926,1722651041629,-500.0,0.00013698,2]
[333965928,1722651041638,-502.80971248,0.00013698,2]
[333965930,1722651041647,-956.88,0.00013698,2]
[333965932,1722651041657,-505.28194984,0.00013698,2]
[333965934,1722651041666,-500.0,0.00013698,2]
[333965936,1722651041675,-514.53690537,0.00013698,2]
[333965938,1722651041684,-500.0,0.00013698,2]
[333965940,1722651041694,-500.0,0.00013698,2]
[333965942,1722651041704,-3456.22,0.00013698,2]
[333965945,1722651041715,-500.0,0.00013698,2]
[333965947,1722651041724,-500.0,0.00013698,2]
[333965949,1722651041735,-500.0,0.00013698,2]
[333965951,1722651041745,-500.0,0.00013698,2]
[333965953,1722651041756,-500.0,0.00013698,2]
[333965955,1722651041769,-500.0,0.00013698,2]
[333965957,1722651041779,-500.89833952,0.00013698,2]
[333965959,1722651041788,-1459.01,0.00013698,2]
[333965961,1722651041798,-882.99,0.00013698,2]
[333965963,1722651041808,-1297.24,0.00013698,2]
[333965965,1722651041817,-500.0,0.00013698,2]
[333965967,1722651041827,-500.0,0.00013698,2]
[333965969,1722651041839,-221.81993965,0.00013698,2]
[333965971,1722651041848,-500.0,0.00013698,2]
[333965973,1722651041858,-500.0,0.00013698,2]
[333965975,1722651041868,-500.0,0.00013698,2]
[333965977,1722651041878,-500.0,0.00013698,2]
[333965979,1722651041887,-500.0,0.00013698,2]
[333965981,1722651041897,-500.0,0.00013698,2]
[333965983,1722651041907,-504.732386,0.00013698,2]
[333965985,1722651041916,-507.96028292,0.00013698,2]
[333965987,1722651041926,-711.41,0.00013698,2]
[333965989,1722651041936,-503.41638704,0.00013698,2]
[333965991,1722651041945,-500.0,0.00013698,2]
[333965993,1722651041954,-500.0,0.00013698,2]
[333965995,1722651041964,-500.0,0.00013698,2]
[333965997,1722651041973,-500.0,0.00013698,2]
[333965999,1722651041982,-501.07907325,0.00013698,2]
[333966001,1722651041991,-500.0,0.00013698,2]
[333966003,1722651042001,-501.20184379,0.00013698,2]
[333966005,1722651042011,-500.0,0.00013698,2]
[333966007,1722651042021,-150.112233,0.000137,2]
[333966009,1722651042031,-150.112233,0.000137,2]
[333966011,1722651042041,-331.22107722,0.00013804,2]
[333966014,1722651042051,-2000.0,0.00013872,2]
[333966016,1722651042061,-8913.151855,0.00013962,2]
[333966018,1722651042071,-500.0,0.00013971,2]
[333966020,1722651042081,-500.0,0.00013971,2]
[333966022,1722651042091,-500.0,0.00013971,2]
[333966024,1722651042101,-875.5,0.00013971,2]
[333966026,1722651042111,-875.5,0.00013971,2]
[333966028,1722651042122,-500.0,0.00013972,2]
[333966030,1722651042131,-511.21770539,0.00013972,2]
[333966041,1722651042227,-500.0,0.00013972,2]
[333966043,1722651042237,-545.03813334,0.00013972,2]
[333966045,1722651042247,-500.0,0.00013972,2]
[333966047,1722651042256,-500.0,0.00013972,2]
[333966049,1722651042266,-507.29501974,0.00013972,2]
[333966051,1722651042275,-508.49076832,0.00013972,2]
[333966053,1722651042284,-500.0,0.00013972,2]
[333966055,1722651042294,-505.77711142,0.00013972,2]
[333966057,1722651042303,-514.4193816,0.00013972,2]
[333966059,1722651042312,-500.0,0.00013972,2]
[333966061,1722651042322,-500.0,0.00013972,2]
[333966063,1722651042333,-87.651215,0.00013972,2]
[333966066,1722651042348,-412.348785,0.00013972,2]
[333966068,1722651042358,-500.0,0.00013972,2]
[333966070,1722651042370,-505.2070458,0.00013972,2]
[333966072,1722651042380,-505.12949006,0.00013972,2]
[333966075,1722651042390,-500.0,0.00013972,2]
[333966077,1722651042400,-500.0,0.00013972,2]
[333966079,1722651042409,-500.0,0.00013972,2]
[333966081,1722651042419,-500.0,0.00013972,2]
[333966083,1722651042429,-500.0,0.00013972,2]
[333966085,1722651042439,-505.69408259,0.00013972,2]
[333966087,1722651042448,-994.27,0.00013972,2]
[333966089,1722651042457,-500.42444569,0.00013972,2]
[333966091,1722651042467,-500.0,0.00013972,2]
[333966092,1722651042475,-539.84331288,0.00013972,2]
[333966094,1722651042485,-215.05142475,0.00013972,2]
[333966096,1722651042494,-522.03,0.00013972,2]
[333966098,1722651042503,-511.17675998,0.00013972,2]
[333966101,1722651042513,-500.0,0.00013972,2]
[333966102,1722651042523,-500.0,0.00013972,2]
[333966104,1722651042533,-500.0,0.00013972,2]
[333966106,1722651042542,-500.0,0.00013972,2]
[333966108,1722651042551,-500.0,0.00013972,2]
[333966110,1722651042560,-500.0,0.00013972,2]
[333966112,1722651042570,-500.0,0.00013972,2]
[333966114,1722651042579,-500.0,0.00013972,2]
[333966116,1722651042588,-500.0,0.00013972,2]
[333966118,1722651042597,-681.7,0.00013972,2]
[333966120,1722651042606,-500.0,0.00013972,2]
[333966122,1722651042615,-500.0,0.00013972,2]
[333966124,1722651042625,-500.0,0.00013972,2]
[333966126,1722651042634,-376.77146814,0.00013972,2]
[333966128,1722651042644,-500.0,0.00013972,2]
[333966130,1722651042653,-500.0,0.00013972,2]
[333966132,1722651042662,-500.0,0.00013972,2]
[333966134,1722651042671,-507.38906622,0.00013972,2]
[333966136,1722651042681,-507.68944398,0.00013972,2]
[333966138,1722651042690,-500.0,0.00013972,2]
[333966140,1722651042699,-506.58775873,0.00013972,2]
[333966142,1722651042709,-818.3,0.00013972,2]
[333966144,1722651042719,-500.0,0.00013972,2]
[333966145,1722651042729,-500.0,0.00013972,2]
[333966147,1722651042738,-5075.94,0.00013972,2]
[333966149,1722651042747,-500.0,0.00013972,2]
[333966151,1722651042759,-500.0,0.00013972,2]
[333966153,1722651042771,-500.0,0.00013972,2]
[333966156,1722651042780,-1406.96,0.00013972,2]
[333966159,1722651042790,-2328.21,0.00013972,2]
[333966162,1722651042800,-505.59746991,0.00013972,2]
[333966165,1722651042809,-1123.57,0.00013972,2]
[333966168,1722651042818,-2201.49049023,0.00013972,2]
[333966201,1722651042995,-336.56950977,0.00013972,2]
[333966205,1722651043005,-500.0,0.00013972,2]
[333966209,1722651043014,-516.63317023,0.00013972,2]
[333966213,1722651043023,-500.0,0.00013972,2]
[333966217,1722651043032,-794.11,0.00013972,2]
[333966221,1722651043043,-509.07,0.00013972,2]
[333966225,1722651043052,-500.0,0.00013972,2]
[333966227,1722651043061,-470.20652001,0.00013972,2]
[333966231,1722651043072,-500.0,0.00013972,2]
[333966233,1722651043081,-506.37835707,0.00013972,2]
[333966236,1722651043091,-500.0,0.00013972,2]
[333966239,1722651043100,-500.0,0.00013972,2]
[333966241,1722651043110,-500.0,0.00013972,2]
[333966244,1722651043119,-500.0,0.00013972,2]
[333966247,1722651043129,-500.0,0.00013972,2]
[333966249,1722651043138,-505.56648012,0.00013972,2]
[333966252,1722651043147,-500.0,0.00013972,2]
[333966254,1722651043157,-500.0,0.00013972,2]
[333966256,1722651043167,-510.63,0.00013972,2]
[333966258,1722651043178,-500.0,0.00013972,2]
[333966260,1722651043188,-508.72962201,0.00013972,2]
[333966262,1722651043198,-1255.87,0.00013972,2]
[333966264,1722651043209,-503.61,0.00013972,2]
[333966266,1722651043220,-500.0,0.00013972,2]
[333966268,1722651043230,-500.0,0.00013972,2]
[333966271,1722651043241,-50.55739256,0.00013972,2]
[333966279,1722651043438,-500.0,0.00013698,2]
[333966280,1722651043450,-449.44260744,0.00013972,2]
[333966281,1722651043462,-509.87784236,0.00013972,2]
[333966282,1722651043473,-500.0,0.00013972,2]
[333966283,1722651043483,-824.53,0.00013972,2]
[333966284,1722651043492,-514.17,0.00013972,2]
[333966285,1722651043503,-624.42,0.00013972,2]
[333966286,1722651043514,-500.0,0.00013972,2]
[333966287,1722651043525,-500.0,0.00013972,2]
[333966288,1722651043535,-500.0,0.00013972,2]
[333966289,1722651043546,-569.4,0.00013972,2]
[333966290,1722651043556,-500.0,0.00013972,2]
[333966291,1722651043566,-500.0,0.00013972,2]
[333966292,1722651043576,-3765.83,0.00013972,2]
[333966293,1722651043586,-500.0,0.00013972,2]
[333966294,1722651043595,-500.0,0.00013972,2]
[333966295,1722651043605,-510.9303049,0.00013972,2]
[333966296,1722651043615,-500.0,0.00013972,2]
[333966297,1722651043625,-956.88,0.00013972,2]
[333966298,1722651043635,-500.0,0.00013972,2]
[333966299,1722651043647,-500.0,0.00013972,2]
[333966300,1722651043657,-280.49797215,0.00013972,2]
[333966301,1722651043668,-219.50202785,0.00013972,2]
[333966303,1722651043680,-3456.22,0.00013972,2]
[333966305,1722651043691,-500.0,0.00013972,2]
[333966307,1722651043704,-500.0,0.00013972,2]
[333966310,1722651043715,-500.0,0.00013972,2]
[333966312,1722651043727,-500.0,0.00013972,2]
[333966314,1722651043740,-500.0,0.00013972,2]
[333966316,1722651043752,-500.0,0.00013972,2]
[333966318,1722651043764,-1459.01,0.00013972,2]
[333966320,1722651043775,-882.99,0.00013972,2]
[333966323,1722651043787,-1297.24,0.00013972,2]
[333966325,1722651043799,-500.0,0.00013972,2]
[333966327,1722651043810,-500.0,0.00013972,2]
[333966329,1722651043821,-500.0,0.00013972,2]
[333966331,1722651043832,-500.0,0.00013972,2]
[333966333,1722651043843,-500.0,0.00013972,2]
[333966335,1722651043852,-500.0,0.00013972,2]
[333966337,1722651043862,-500.0,0.00013972,2]
[333966339,1722651043872,-711.41,0.00013972,2]
[333966341,1722651043882,-500.0,0.00013972,2]
[333966343,1722651043892,-500.80049811,0.00013972,2]
[333966346,1722651043902,-500.0,0.00013972,2]
[333966348,1722651043912,-500.0,0.00013972,2]
[333966350,1722651043923,-500.0,0.00013972,2]
[333966352,1722651043933,-500.0,0.00013972,2]
[333966354,1722651043942,-181.65791997,0.00013972,2]
[333966356,1722651043952,-331.22107722,0.00014009,2]
[333966358,1722651043961,-4440.1554524,0.0001415,2]
[333966360,1722651043972,-331.22107722,0.00014215,2]
[333966362,1722651043983,-434.88350656,0.00014235,2]
[333966364,1722651043997,-65.11649344,0.00014235,2]
[333966366,1722651044007,-8913.151855,0.00014236,2]
[333966368,1722651044016,-500.0,0.00014245,2]
[333966370,1722651044026,-500.0,0.00014245,2]
[333966372,1722651044035,-875.5,0.00014245,2]
[333966374,1722651044044,-875.5,0.00014245,2]
[333966377,1722651044055,-9735.2541332,0.00014246,5]
[333966379,1722651044066,-525.27470868,0.00014246,2]
[333966381,1722651044078,-500.0,0.00014246,2]
[333966383,1722651044089,-508.40433697,0.00014246,2]
[333966385,1722651044100,-500.0,0.00014246,2]
[333966388,1722651044112,-500.0,0.00014246,2]
[333966390,1722651044123,-500.0,0.00014246,2]
[333966392,1722651044134,-500.0,0.00014246,2]
[333966393,1722651044143,-500.0,0.00014246,2]
[333966395,1722651044154,-500.0,0.00014246,2]
[333966398,1722651044164,-500.0,0.00014246,2]
[333966400,1722651044175,-509.40937019,0.00014246,2]
[333966402,1722651044185,-500.0,0.00014246,2]
[333966404,1722651044196,-505.68642407,0.00014246,2]
[333966406,1722651044205,-219.33146649,0.00014246,2]
[333966408,1722651044215,-994.27,0.00014246,2]
[333966410,1722651044225,-569.95359372,0.00014246,2]
[333966412,1722651044236,-522.03,0.00014246,2]
[333966414,1722651044246,-500.0,0.00014246,2]
[333966424,1722651044336,-151.0,0.00014246,2]
[333966426,1722651044346,-500.0,0.00014246,2]
[333966428,1722651044356,-500.0,0.00014246,2]
[333966430,1722651044366,-500.0,0.00014246,2]
[333966432,1722651044375,-156.193329,0.00014246,2]
[333966434,1722651044384,-500.0,0.00014246,2]
[333966436,1722651044394,-151.0,0.00014246,2]
[333966438,1722651044405,-500.0,0.00014246,2]
[333966440,1722651044414,-500.0,0.00014246,2]
[333966442,1722651044423,-500.0,0.00014246,2]
[333966444,1722651044433,-500.0,0.00014246,2]
[333966446,1722651044443,-681.7,0.00014246,2]
[333966448,1722651044453,-151.0,0.00014246,2]
[333966450,1722651044462,-8.34379793,0.00014246,2]
[333966453,1722651044480,-491.65620207,0.00014246,2]
[333966455,1722651044490,-151.0,0.00014246,2]
[333966457,1722651044499,-500.0,0.00014246,2]
[333966459,1722651044508,-500.0,0.00014246,2]
[333966461,1722651044517,-294.342672,0.00014246,2]
[333966463,1722651044529,-294.342672,0.00014246,2]
[333966465,1722651044539,-228.823392,0.00014246,2]
[333966467,1722651044548,-228.823392,0.00014246,2]
[333966469,1722651044561,-500.0,0.00014246,2]
[333966471,1722651044571,-500.0,0.00014246,2]
[333966473,1722651044580,-500.0,0.00014246,2]
[333966475,1722651044590,-500.0,0.00014246,2]
[333966477,1722651044599,-818.3,0.00014246,2]
[333966479,1722651044609,-500.0,0.00014246,2]
[333966481,1722651044619,-500.0,0.00014246,2]
[333966483,1722651044628,-161.208465,0.00014246,2]
[333966485,1722651044637,-5075.94,0.00014246,2]
[333966487,1722651044647,-500.0,0.00014246,2]
[333966489,1722651044657,-500.0,0.00014246,2]
[333966491,1722651044666,-500.0,0.00014246,2]
[333966493,1722651044675,-1406.96,0.00014246,2]
[333966495,1722651044684,-2328.21,0.00014246,2]
[333966497,1722651044694,-1123.57,0.00014246,2]
[333966499,1722651044703,-2538.06,0.00014246,2]
[333966501,1722651044713,-151.0,0.00014246,2]
[333966503,1722651044723,-500.0,0.00014246,2]
[333966505,1722651044732,-152.871535,0.00014246,2]
[333966507,1722651044742,-500.0,0.00014246,2]
[333966509,1722651044751,-794.11,0.00014246,2]
[333966511,1722651044762,-151.0,0.00014246,2]
[333966513,1722651044771,-500.0,0.00014246,2]
[333966515,1722651044781,-509.07,0.00014246,2]
[333966517,1722651044790,-151.0,0.00014246,2]
[333966519,1722651044800,-500.0,0.00014246,2]
[333966521,1722651044809,-151.0,0.00014246,2]
[333966523,1722651044818,-500.0,0.00014246,2]
[333966524,1722651044827,-151.0,0.00014246,2]
[333966526,1722651044838,-500.0,0.00014246,2]
[333966528,1722651044847,-511.12489465,0.00014246,2]
[333966530,1722651044857,-302.8454742,0.00014246,2]
[333966532,1722651044866,-500.0,0.00014246,2]
[333966534,1722651044875,-315.79953879,0.00014246,2]
[333966701,1722651046472,-184.20046121,0.00014246,2]
[333966703,1722651046482,-135.79953879,0.00014246,2]
[333966706,1722651046493,-370.08521032,0.00014246,2]
[333966708,1722651046503,-151.0,0.00014246,2]
[333966710,1722651046512,-44.28315436,0.00014246,2]
[333966712,1722651046524,-466.34684564,0.00014246,2]
[333966714,1722651046533,-33.65315436,0.00014246,2]
[333966807,1722651047398,-325.33863209,0.00014246,2]
[333966809,1722651047411,-141.00821355,0.00014246,2]
[333966812,1722651047422,-473.45191243,0.00014246,2]
[333966814,1722651047434,-716.68924705,0.00014246,2]
[333966816,1722651047446,-65.72884052,0.00014246,2]
[333966818,1722651047458,-151.0,0.00014246,2]
[333966820,1722651047468,-204.89654753,0.00014246,2]
[333966842,1722651047665,-3449.63882989,0.00013698,2]
[333966844,1722651047677,-264.46625028,0.00013698,2]
[333969278,1722651125989,845.38878034,9.999e-05,2]
[333969279,1722651140561,160.12240222,9.999e-05,2]
[333969280,1722651153383,160.40006582,9.999e-05,2]
[333969281,1722651231015,777.6395989,9.999e-05,2]
[333969286,1722651588030,236.9019948,9.999e-05,2]
[333969288,1722652060581,44.90897825,0.000273,120]
[333969289,1722652124097,628.22195556,0.0002336,120]
[333969290,1722652124325,5753.77704322,0.00024,60]
[333969335,1722652233880,-2492.19337663,0.00011914,2]
[333969336,1722652233890,-300.0,0.00012091,2]
[333969337,1722652233900,-10151.7365781,0.00012092,2]
[333969340,1722652238695,-795.25274607,0.00012092,2]
[333969341,1722652238803,-6414.10238854,0.00012092,2]
[333969342,1722652238816,-7538.90828729,0.00012092,2]
[333969344,1722652238826,-203.188496,0.00012259,2]
[333969345,1722652238837,-258.012822,0.00012402,2]
[333969346,1722652238848,-203.188496,0.00012898,2]
[333969348,1722652238858,-170.681863,0.00012986,2]
[333969349,1722652238868,-420.0,0.000133,2]
[333969351,1722652238877,-502.87440381,0.00013598,2]
[333969353,1722652238887,-16328.90607539,0.00013688,2]
[333969355,1722652238898,-38729.9342569,0.00013688,2]
[333969357,1722652238907,-500.0,0.00013697,2]
[333969358,1722652238917,-500.0,0.00013697,2]
[333969360,1722652238926,-500.71650985,0.00013698,2]
[333969362,1722652238935,-500.0,0.00013698,2]
[333969364,1722652238945,-533.35139556,0.00013698,2]
[333969366,1722652238955,-508.50166212,0.00013698,2]
[333969368,1722652238965,-503.91147168,0.00013698,2]
[333969370,1722652238975,-500.0,0.00013698,2]
[333969372,1722652238985,-500.0,0.00013698,2]
[333969374,1722652238995,-505.14941585,0.00013698,2]
[333969376,1722652239004,-500.0,0.00013698,2]
[333969377,1722652239014,-500.0,0.00013698,2]
[333969378,1722652239024,-500.0,0.00013698,2]
[333969379,1722652239033,-633.56,0.00013698,2]
[333969380,1722652239044,-432.52646322,0.00013698,2]
[333969381,1722652239053,-503.4325015,0.00013698,2]
[333969382,1722652239063,-500.0,0.00013698,2]
[333969383,1722652239073,-505.51063764,0.00013698,2]
[333969384,1722652239099,-500.0,0.00013698,2]
[333969385,1722652239108,-511.29375438,0.00013698,2]
[333969386,1722652239120,-500.0,0.00013698,2]
[333969387,1722652239130,-505.36919632,0.00013698,2]
[333969388,1722652239139,-503.0087459,0.00013698,2]
[333969389,1722652239148,-505.2723257,0.00013698,2]
[333969390,1722652239159,-500.89821885,0.00013698,2]
[333969391,1722652239168,-502.18766281,0.00013698,2]
[333969392,1722652239180,-507.1117221,0.00013698,2]
[333969393,1722652239191,-501.98761715,0.00013698,2]
[333969394,1722652239206,-512.2787417,0.00013698,2]
[333969395,1722652239217,-500.0,0.00013698,2]
[333969396,1722652239227,-333.52226105,0.00013698,2]
[333969397,1722652239237,-509.93525858,0.00013698,2]
[333969398,1722652239247,-504.6577316,0.00013698,2]
[333969399,1722652239257,-412.27994082,0.00013698,2]
[333969400,1722652239266,-500.0,0.00013698,2]
[333969401,1722652239276,-500.0,0.00013698,2]
[333969402,1722652239286,-500.0,0.00013698,2]
[333969403,1722652239295,-500.0,0.00013698,2]
[333969404,1722652239305,-500.97945522,0.00013698,2]
[333969405,1722652239314,-500.0,0.00013698,2]
[333969406,1722652239324,-500.0,0.00013698,2]
[333969407,1722652239333,-498.86377697,0.00013698,2]
[333969408,1722652239343,-500.0,0.00013698,2]
[333969409,1722652239353,-573.80076268,0.00013698,2]
[333969410,1722652239362,-500.0,0.00013698,2]
[333969411,1722652239372,-500.0,0.00013698,2]
[333969412,1722652239381,-500.0,0.00013698,2]
[333969413,1722652239391,-505.18443936,0.00013698,2]
[333969414,1722652239401,-503.9952865,0.00013698,2]
[333969415,1722652239410,-500.0,0.00013698,2]
[333969416,1722652239420,-500.0,0.00013698,2]
[333969417,1722652239430,-500.0,0.00013698,2]
[333969418,1722652239440,-500.0,0.00013698,2]
[333969419,1722652239449,-505.37084216,0.00013698,2]
[333969420,1722652239459,-503.88,0.00013698,2]
[333969421,1722652239468,-507.00878106,0.00013698,2]
[333969422,1722652239478,-527.9305888,0.00013698,2]
[333969423,1722652239487,-543.10242154,0.00013698,2]
[333969424,1722652239497,-347.36219813,0.00013698,2]
[333969425,1722652239506,-503.88063968,0.00013698,2]
[333969426,1722652239516,-500.0,0.00013698,2]
[333969427,1722652239525,-500.0,0.00013698,2]
[333969428,1722652239535,-505.67568784,0.00013698,2]
[333969429,1722652239545,-500.0,0.00013698,2]
[333969430,1722652239554,-500.80186033,0.00013698,2]
[333969431,1722652239563,-380.17617847,0.00013698,2]
[333969432,1722652239573,-500.0,0.00013698,2]
[333969433,1722652239589,-500.0,0.00013698,2]
[333969434,1722652239599,-500.0,0.00013698,2]
[333969435,1722652239614,-500.0,0.00013698,2]
[333969436,1722652239624,-500.0,0.00013698,2]
[333969437,1722652239634,-503.77144398,0.00013698,2]
[333969438,1722652239644,-501.02669427,0.00013698,2]
[333969439,1722652239653,-728.64,0.00013698,2]
[333969440,1722652239663,-500.0,0.00013698,2]
[333969441,1722652239673,-500.0,0.00013698,2]
[333969442,1722652239682,-500.0,0.00013698,2]
[333969443,1722652239691,-500.0,0.00013698,2]
[333969444,1722652239703,-501.04584901,0.00013698,2]
[333969445,1722652239714,-502.39655978,0.00013698,2]
[333969446,1722652239725,-503.64866974,0.00013698,2]
[333969447,1722652239735,-500.0,0.00013698,2]
[333969448,1722652239746,-500.0,0.00013698,2]
[333969449,1722652239757,-500.0,0.00013698,2]
[333969450,1722652239768,-502.42230152,0.00013698,2]
[333969451,1722652239777,-319.85557054,0.00013698,2]
[333969452,1722652239786,-501.49036736,0.00013698,2]
[333969453,1722652239795,-500.0,0.00013698,2]
[333969454,1722652239807,-339.72296225,0.00013698,2]